fUST/lending_fUST_20240711
["ID","MTS","AMOUNT","RATE_DAILY","PERIOD"]
[331718715,1720692640185,-500.0,0.00025369,2]
[331718716,1720692640195,-500.0,0.00025369,2]
[331718717,1720692640204,-500.0,0.00025369,2]
[331718718,1720692640213,-500.0,0.00025369,2]
[331718719,1720692640223,-500.0,0.00025369,2]
[331718720,1720692640232,-499.99999999,0.00025369,2]
[331718721,1720692640242,-500.0,0.00025369,2]
[331718722,1720692640252,-500.0,0.00025369,2]
[331718723,1720692640262,-500.0,0.00025369,2]
[331718724,1720692640272,-500.0,0.00025369,2]
[331718725,1720692640281,-500.0,0.00025369,2]
[331718726,1720692640290,-595.91983559,0.00025369,2]
[331718727,1720692640299,-518.19734554,0.00025369,2]
[331718728,1720692640309,-500.0,0.00025369,2]
[331718729,1720692640319,-500.0,0.00025369,2]
[331718730,1720692640330,-500.0,0.00025369,2]
[331718731,1720692640340,-500.0,0.00025369,2]
[331718732,1720692640351,-500.0,0.00025369,2]
[331718733,1720692640361,-500.0,0.00025369,2]
[331718734,1720692640370,-500.0,0.00025369,2]
[331718735,1720692640380,-500.0,0.00025369,2]
[331718736,1720692640389,-500.0,0.00025369,2]
[331718737,1720692640399,-320.06857258,0.00025369,2]
[331718739,1720692640408,-500.0,0.00025369,2]
[331718741,1720692640417,-500.0,0.00025369,2]
[331718742,1720692640427,-500.0,0.00025369,2]
[331718743,1720692640436,-500.0,0.00025369,2]
[331718744,1720692640445,-500.0,0.00025369,2]
[331718745,1720692640455,-500.0,0.00025369,2]
[331718746,1720692640465,-177.0690223,0.00025369,2]
[331718747,1720692640474,-191.80881235,0.0002537,2]
[331718748,1720692640484,-108800.68692,0.0002537,3]
[331718749,1720692640494,-1295.99740833,0.0002538,5]
[331718750,1720692640503,-77515.30556007,0.0002538,3]
[331718751,1720692640538,1992.51989508,0.00019164,2]
[331718752,1720692640843,-450.30632069,0.0002538,3]
[331718753,1720692641592,167.89204447,0.00019165,2]
[331718776,1720692643970,-160.99483695,0.0002323,2]
[331718800,1720692649594,391.80627157,0.00019165,2]
[331718801,1720692729994,12193.64979896,0.00018899,2]
[331718802,1720692730015,8458.14609148,0.00018899,2]
[331718808,1720692818958,624.794793,0.00016255,2]
[331718809,1720692818992,802.30589113,0.00016255,2]
[331718810,1720692819025,802.30589113,0.00016255,2]
[331718811,1720692819055,802.30589113,0.00016255,2]
[331718812,1720692819080,1773.89879946,0.00016255,2]
[331718813,1720692838174,6981.98564229,0.00016255,2]
[331718814,1720692856281,2120.56218901,0.00016255,2]
[331718815,1720692886620,2128.85592131,0.00016255,2]
[331718816,1720692897518,1702.67775224,0.00016255,2]
[331718817,1720692898018,17702.22199489,0.00016255,2]
[331718818,1720692899688,2949.23966688,0.00016255,2]
[331718819,1720692912214,592.91517968,0.00016255,2]
[331718820,1720692938850,524.1077099,0.00016255,2]
[331718821,1720692940977,181.73643219,0.00016255,2]
[331718822,1720692969433,720.09488802,0.00016255,2]
[331718823,1720692984079,909.19310766,0.00016255,2]
[331718824,1720692986777,3132.64292851,0.00016255,4]
[331718825,1720693003759,532.50847481,0.00016255,2]
[331718826,1720693007158,1636.49010264,0.00016255,2]
[331718827,1720693011516,545.18138872,0.00016255,2]
[331718828,1720693014648,3243.23549452,0.00016255,2]
[331718829,1720693018837,2120.56218901,0.00016255,2]
[331718830,1720693022180,2711.11436038,0.00016255,2]
[331718831,1720693063484,1604.39902116,0.00016255,2]
[331718832,1720693073152,286.10795998,0.00016255,2]
[331718833,1720693075679,2126.43441341,0.00016255,2]
[331718834,1720693086190,402.67299645,0.00016255,2]
[331718835,1720693091852,195.91834676,0.00016255,2]
[331718836,1720693100195,402.67299645,0.00016255,2]
[331718837,1720693103452,209.31817584,0.00016255,2]
[331718838,1720693106577,1042.97057686,0.00016255,2]
[331718839,1720693108098,284.5704575,0.00016255,2]
[331718840,1720693109221,781.74546038,0.00016255,2]
[331718841,1720693114002,287.01556155,0.00016255,2]
[331718842,1720693114103,585.69283477,0.00016255,2]
[331718843,1720693114962,790.54047591,0.00016255,2]
[331718844,1720693115785,381.1593141,0.00016255,2]
[331718845,1720693116474,154.88921117,0.00016255,2]
[331718846,1720693117526,4128.5411598,0.00017218,2]
[331718847,1720693119233,310.17592974,0.00016255,2]
[331718848,1720693128163,156.3978779,0.00016255,2]
[331718849,1720693129742,320.57359109,0.00016255,2]
[331718850,1720693135975,279.32989247,0.00016255,2]
[331718851,1720693136103,201.03633962,0.00016255,2]
[331718852,1720693138174,258.19873895,0.00016255,2]
[331718853,1720693151544,354.46681452,0.00016255,2]
[331718854,1720693157101,391.80627157,0.00016255,2]
[331718855,1720693158069,158.99821132,0.00016255,2]
[331718856,1720693173669,412.96318042,0.00016255,2]
[331718857,1720693174169,515.94830046,0.00016255,2]
[331718858,1720693175973,165.32242595,0.00016255,2]
[331718859,1720693176647,154.65203293,0.00016255,2]
[331718860,1720693181360,154.65203293,0.00016255,2]
[331718861,1720693183484,165.20623857,0.00016255,2]
[331718862,1720693188446,156.01014507,0.00016255,2]
[331718863,1720693188754,182.77484663,0.00016255,2]
[331718864,1720693194338,191.88990126,0.00016255,2]
[331718865,1720693194373,155.10750138,0.00016255,2]
[331718866,1720693198737,200.0,0.00016255,2]
[331718867,1720693198833,232.98135407,0.00016255,2]
[331718868,1720693199191,244.11093245,0.00016255,2]
[331718869,1720693199659,158.27709098,0.00016255,2]
[331718870,1720693199928,182.97392112,0.00016255,2]
[331718871,1720693200682,160.11041109,0.00016255,2]
[331718872,1720693204786,163.03737012,0.00016255,2]
[331718873,1720693208967,161.93910829,0.00016255,2]
[331718874,1720693213141,219.50607526,0.00016255,2]
[331718875,1720693216018,459.7457846,0.00016255,2]
[331718876,1720693221419,254.73502397,0.00016255,2]
[331718877,1720693221537,276.38559097,0.00016255,2]
[331718880,1720693228258,450.44232626,0.00016255,2]
[331718881,1720693230910,193.88291361,0.00016255,2]
[331718882,1720693232441,154.66746495,0.00016255,2]
[331718885,1720693240628,155.52343625,0.00016255,2]
[331718886,1720693241717,215.95451843,0.00016255,2]
[331718887,1720693246173,276.75070729,0.00017159,2]
[331718888,1720693254826,2373.0107618,0.00017082,2]
[331718889,1720693262267,258.98562017,0.00016255,2]
[331718890,1720693279108,348.45032102,0.00016255,2]
[331718891,1720693293814,3610.4704711,0.00017185,2]
[331718892,1720693297162,24900.0,0.00017185,2]
[331718893,1720693302366,362.54454602,0.00016255,2]
[331718894,1720693311204,350.28694211,0.00016255,2]
[331718895,1720693313316,274.03157587,0.00016255,2]
[331718896,1720693313451,353.06707028,0.00016255,2]
[331718897,1720693331105,201.03633962,0.00016255,2]
[331718898,1720693331549,154.65203293,0.00016255,2]
[331718899,1720693335232,391.80627157,0.00016255,2]
[331718900,1720693335273,-300.0,0.00017562,2]
[331718901,1720693335308,-300.0,0.00017562,2]
[331718902,1720693335343,-19389.491772,0.00017563,2]
[331718903,1720693345554,354.46681452,0.00016255,2]
[331718904,1720693348522,403.69228639,0.00016255,2]
[331718905,1720693363616,-250.0,0.00017817,2]
[331718906,1720693368780,-2065.173614,0.00017825,2]
[331718907,1720693387765,182.77484663,0.00016255,2]
[331718908,1720693393941,154.65203293,0.00016255,2]
[331718909,1720693394305,412.96318042,0.00016255,2]
[331718910,1720693408900,154.65203293,0.00016255,2]
[331718911,1720693409580,-924.9918375,0.00018016,2]
[331718912,1720693419693,-300.0,0.00018668,2]
[331718913,1720693419726,-300.0,0.00018668,2]
[331718914,1720693419761,-52815.5509748,0.00018669,2]
[331718915,1720693437694,160.11041109,0.00016255,2]
[331718917,1720693442801,154.65203293,0.00016255,2]
[331718918,1720693447282,-210.26085862,0.00018698,2]
[331718919,1720693452783,-191.20491413,0.00018798,2]
[331718921,1720693458398,-276.75070729,0.00018798,2]
[331718922,1720693462220,-1286.5497443,0.00018099,2]
[331718923,1720693462256,-266.14987327,0.00018899,2]
[331718924,1720693477822,-589.64910226,0.00018899,2]
[331718925,1720693477856,-348.45032102,0.00018899,2]
[331718926,1720693477890,-348.45032102,0.00018899,2]
[331718927,1720693477924,-201.03633962,0.00018899,2]
[331718928,1720693503861,-197.33907868,0.00019039,2]
[331718929,1720693503896,-250.0,0.00019041,2]
[331718930,1720693503933,-300.0,0.00019062,2]
[331718931,1720693503969,-191.80881239,0.00019063,2]
[331718932,1720693504004,-5290.13269521,0.00019063,2]
[331718933,1720693504039,-300.0,0.00019064,2]
[331718934,1720693504075,-5470.71941372,0.00019065,2]
[331718935,1720693535321,-250.0,0.00018131,2]
[331718936,1720693535357,-9615.23092531,0.00018899,2]
[331718937,1720693535393,-391.80627157,0.00018899,2]
[331718938,1720693535431,-300.0,0.00019062,2]
[331718939,1720693535466,-4442.96280312,0.00019065,2]
[331718940,1720693568039,-6385.638925,0.00018301,2]
[331718941,1720693568076,-300.0,0.00018898,2]
[331718942,1720693568113,-300.0,0.00018898,2]
[331718943,1720693568151,-403.69228639,0.00018899,2]
[331718944,1720693568187,-32610.66878861,0.00018899,2]
[331718948,1720693593670,34955.89731767,0.00016255,2]
[331718949,1720693607567,354.46681452,0.00016255,2]
[331718950,1720693618248,-153.53386211,0.00018898,2]
[331718951,1720693618284,-182.77484663,0.00018899,2]
[331718952,1720693618319,-3474.60125549,0.000189,2]
[331718953,1720693618354,-10467.702446,0.00019065,2]
[331718954,1720693618389,-15721.38758977,0.00019153,2]
[331718963,1720693711078,9984.42692194,0.000139,2]
[331718965,1720693725990,-862.94014046,0.00019078,2]
[331718971,1720693822870,441.3239895,0.00016255,2]
[331718985,1720693833123,-309.04189686,0.00018899,2]
[331718986,1720693833135,-371.24282006,0.00018899,2]
[331718987,1720693833146,-524.1077099,0.00018899,2]
[331718988,1720693833158,-194.72479327,0.00018899,2]
[331718989,1720693833168,-308.99561002,0.00018899,2]
[331718990,1720693833179,-250.0,0.00019041,2]
[331718991,1720693833189,-185.83252864,0.000191,2]
[331718992,1720693833200,-300.0,0.00019164,2]
[331718993,1720693833211,-300.0,0.00019164,2]
[331718994,1720693833223,-191.20491413,0.00019165,2]
[331718995,1720693833234,-163.09281,0.00019178,2]
[331718996,1720693833244,-580.26626897,0.00019603,2]
[331718997,1720693833254,-191.07291461,0.00019603,2]
[331718998,1720693833265,-1398.22996477,0.00019703,2]
[331718999,1720693833276,-8049.87430432,0.0002,2]
[331719000,1720693833286,-155.70382324,0.0002,2]
[331719001,1720693833297,-155.34844322,0.0002,2]
[331719002,1720693833389,-293.58203646,0.0002,2]
[331719003,1720693833403,-154.65203293,0.0002,2]
[331719004,1720693833413,-246.31146816,0.0002,2]
[331719005,1720693833423,-435.0,0.0002,2]
[331719006,1720693833433,-158.63932694,0.0002,2]
[331719007,1720693833445,-171.3242108,0.0002,2]
[331719008,1720693833455,-4253.0792301,0.0002,2]
[331719009,1720693833465,-1549.5827518,0.0002,2]
[331719010,1720693833475,-48699.35249682,0.0002,2]
[331719011,1720693833485,-420.0,0.00020885,2]
[331719012,1720693833496,-420.0,0.0002108,2]
[331719013,1720693833507,-750.0,0.00021096,2]
[331719014,1720693833518,-974.60510578,0.00021185,2]
[331719016,1720693833529,-3000.0,0.00021409,2]
[331719017,1720693833539,-167.16009279,0.00021409,2]
[331719018,1720693833551,-3112.80017201,0.00021409,2]
[331719020,1720693833562,-1032.586807,0.00021409,2]
[331719022,1720693833573,-823.5471562,0.00021409,2]
[331719024,1720693833583,-1065.65690458,0.00021917,2]
[331719025,1720693833593,-166.666666,0.00021918,2]
[331719027,1720693833603,-880.43468387,0.00022238,2]
[331719028,1720693833613,-637.73025529,0.00022244,2]
[331719030,1720693833622,-154.68290005,0.00022276,2]
[331719032,1720693833633,-154.68290005,0.00022276,2]
[331719034,1720693833643,-306.44597889,0.0002243,2]
[331719037,1720693833655,-166.666666,0.00022431,2]
[331719038,1720693833665,-354.46681452,0.00022579,2]
[331719039,1720693833675,-4791.34433638,0.00022866,2]
[331719040,1720693833684,-607.19,0.00022897,3]
[331719041,1720693833694,-6863.87493251,0.00022907,2]
[331719042,1720693833704,-215.126289,0.0002293,7]
[331719043,1720693833714,-215.126289,0.0002293,7]
[331719044,1720693833724,-151.0,0.0002293,7]
[331719046,1720693833734,-182.77484663,0.00022941,2]
[331719048,1720693833743,-2000.0,0.00022942,2]
[331719050,1720693833752,-166.666666,0.00022944,2]
[331719052,1720693833762,-4791.34433638,0.00023167,2]
[331719054,1720693833771,-587.0,0.00023189,2]
[331719056,1720693833781,-493.9878288,0.00023215,2]
[331719058,1720693833790,-428.44271624,0.0002323,2]
[331719060,1720693833800,-332.45239118,0.0002323,7]
[331719062,1720693833810,-2000.0,0.0002323,2]
[331719064,1720693833819,-620.88651276,0.00023356,2]
[331719066,1720693833829,-492.55302453,0.00023455,2]
[331719068,1720693833839,-166.666666,0.00023456,2]
[331719070,1720693833848,-4791.34433638,0.0002355,2]
[331719072,1720693833859,-4791.34433638,0.00023598,2]
[331719074,1720693833869,-292.5259784,0.00023789,2]
[331719076,1720693833878,-4791.34433638,0.00023886,2]
[331719078,1720693833887,-215.126289,0.00023887,7]
[331719080,1720693833896,-215.126289,0.00023887,7]
[331719082,1720693833906,-151.0,0.00023887,7]
[331719084,1720693833915,-228.303785,0.00023887,7]
[331719086,1720693833924,-500.0,0.00023889,2]
[331719088,1720693833933,-500.0,0.00023889,2]
[331719090,1720693833942,-434.97652004,0.00023889,2]
[331719092,1720693833957,-65.02347996,0.00023889,2]
[331719094,1720693833967,-500.0,0.00023889,2]
[331719096,1720693833976,-500.0,0.00023889,2]
[331719098,1720693833985,-500.0,0.00023889,2]
[331719100,1720693833994,-500.0,0.00023889,2]
[331719102,1720693834004,-500.0,0.00023889,2]
[331719104,1720693834013,-500.0,0.00023889,2]
[331719105,1720693834023,-500.0,0.00023889,2]
[331719106,1720693834032,-500.0,0.00023889,2]
[331719107,1720693834041,-587.42438835,0.00023889,2]
[331719108,1720693834051,-500.0,0.00023889,2]
[331719109,1720693834060,-164.94770782,0.00023889,2]
[331719110,1720693834069,-500.0,0.00023889,2]
[331719111,1720693834079,-10.40235338,0.00023889,2]
[331719112,1720693834092,-338.3121964,0.00023889,2]
[331719132,1720693838062,-160.11041109,0.00018899,2]
[331719133,1720693838072,-271.9244408,0.00021095,2]
[331719134,1720693838082,-151.28545022,0.00023889,2]
[331719135,1720693838091,-500.0,0.00023889,2]
[331719136,1720693838102,-500.0,0.00023889,2]
[331719137,1720693838112,-500.0,0.00023889,2]
[331719138,1720693838122,-545.91983559,0.00023889,2]
[331719139,1720693838132,-500.0,0.00023889,2]
[331719140,1720693838142,-500.0,0.00023889,2]
[331719141,1720693838151,-500.0,0.00023889,2]
[331719142,1720693838161,-500.0,0.00023889,2]
[331719143,1720693838171,-500.0,0.00023889,2]
[331719144,1720693838181,-500.0,0.00023889,2]
[331719145,1720693838191,-500.0,0.00023889,2]
[331719146,1720693838200,-518.19734554,0.00023889,2]
[331719147,1720693838210,-500.0,0.00023889,2]
[331719148,1720693838219,-639.97220644,0.00023889,2]
[331719149,1720693838229,-500.0,0.00023889,2]
[331719150,1720693838238,-500.0,0.00023889,2]
[331719151,1720693838247,-500.0,0.00023889,2]
[331719152,1720693838257,-500.0,0.00023889,2]
[331719153,1720693838267,-500.0,0.00023889,2]
[331719154,1720693838277,-500.0,0.00023889,2]
[331719155,1720693838286,-500.0,0.00023889,2]
[331719156,1720693838296,-500.0,0.00023889,2]
[331719157,1720693838307,-500.0,0.00023889,2]
[331719158,1720693838317,-500.0,0.00023889,2]
[331719159,1720693838327,-500.0,0.00023889,2]
[331719160,1720693838337,-500.0,0.00023889,2]
[331719161,1720693838347,-500.0,0.00023889,2]
[331719162,1720693838358,-500.0,0.00023889,2]
[331719163,1720693838367,-500.0,0.00023889,2]
[331719164,1720693838377,-500.0,0.00023889,2]
[331719165,1720693838386,-500.0,0.00023889,2]
[331719166,1720693838397,-411.05231822,0.00023889,2]
[331719167,1720693838408,-500.0,0.00023889,2]
[331719168,1720693838416,-499.99999999,0.00023889,2]
[331719169,1720693838426,-1295.99740833,0.0002389,5]
[331719170,1720693838436,-69312.6156613,0.0002389,3]
[331719171,1720693838446,-3474.60125549,0.000239,2]
[331719172,1720693838456,-166.666666,0.00023969,2]
[331719173,1720693838466,-500.0,0.00024,2]
[331719174,1720693838476,-292.52597836,0.00024192,2]
[331719175,1720693838486,-4791.34433638,0.00024214,2]
[331719176,1720693838496,-150.5,0.00024227,62]
[331719177,1720693838506,-150.5,0.00024237,62]
[331719178,1720693838515,-150.5,0.00024247,62]
[331719179,1720693838525,-251.40015,0.00024257,7]
[331719180,1720693838535,-251.40015,0.00024257,7]
[331719181,1720693838544,-155.45465387,0.00024481,2]
[331719182,1720693838554,-166.666666,0.00024482,2]
[331719183,1720693838564,-620.04432564,0.00024524,2]
[331719184,1720693838573,-4791.34433638,0.0002453,2]
[331719185,1720693838583,-88888.0,0.00024573,3]
[331719186,1720693838593,-292.52597836,0.00024595,2]
[331719187,1720693838603,-380.0,0.00024658,2]
[331719188,1720693838612,-4791.34433638,0.00024812,2]
[331719189,1720693838622,-4791.3443364,0.00024972,2]
[331719190,1720693838632,-292.52597836,0.00024997,2]
[331719191,1720693838642,-229.23922118,0.00025,2]
[331719192,1720693838653,-260.49611941,0.00025,2]
[331719193,1720693838664,-500.0,0.00025,2]
[331719194,1720693838673,-69312.6156613,0.00025037,3]
[331719195,1720693838682,-26753.21043197,0.00025047,2]
[331719196,1720693838694,-200.0,0.000251,2]
[331719197,1720693838705,-301.44757931,0.00025308,2]
[331719198,1720693838715,-300.0,0.00025328,2]
[331719199,1720693838775,-251.40015,0.0002537,7]
[331719200,1720693838787,-251.40015,0.0002537,7]
[331719201,1720693838797,-996.289152,0.0002537,7]
[331719202,1720693838808,-996.289152,0.0002537,7]
[331719203,1720693838817,-215.126289,0.0002538,7]
[331719204,1720693838826,-215.126289,0.0002538,7]
[331719205,1720693838835,-151.0,0.0002538,7]
[331719206,1720693838847,-996.289152,0.0002538,7]
[331719207,1720693838858,-996.289152,0.0002538,7]
[331719208,1720693838869,-215.126289,0.0002539,7]
[331719209,1720693838882,-215.126289,0.0002539,7]
[331719210,1720693838893,-151.0,0.0002539,7]
[331719211,1720693838904,-251.40015,0.0002539,7]
[331719212,1720693838915,-251.40015,0.0002539,7]
[331719213,1720693838926,-251.40015,0.0002539,7]
[331719214,1720693838940,-251.40015,0.0002539,7]
[331719215,1720693838950,-996.289152,0.0002539,7]
[331719216,1720693838959,-996.289152,0.0002539,7]
[331719217,1720693838969,-500.0,0.00025399,2]
[331719218,1720693838979,-488.99970959,0.00025399,2]
[331719219,1720693838988,-500.0,0.00025399,2]
[331719220,1720693838997,-500.0,0.00025399,2]
[331719221,1720693839007,-500.0,0.00025399,2]
[331719222,1720693839017,-500.0,0.00025399,2]
[331719223,1720693839028,-500.0,0.00025399,2]
[331719224,1720693839039,-500.0,0.00025399,2]
[331719225,1720693839050,-179.04024581,0.00025399,2]
[331719226,1720693839060,-514.4989866,0.00025399,2]
[331719227,1720693839071,-390.95045338,0.00025399,2]
[331719228,1720693839082,-500.0,0.00025399,2]
[331719229,1720693839093,-173.70369,0.000254,2]
[331719230,1720693839103,-85390.87098319,0.000254,2]
[331719236,1720693840094,-182.77484663,0.00022579,2]
[331719237,1720693840104,-18339.04066416,0.000254,2]
[331719238,1720693840113,-292.52597836,0.000254,2]
[331719239,1720693840123,-974.284818,0.000254,2]
[331719240,1720693840133,-974.284818,0.000254,2]
[331719241,1720693840143,-69312.6156613,0.0002549,3]
[331719242,1720693840152,-11700.41437444,0.0002549,5]
[331719243,1720693840163,-138625.231323,0.0002549,3]
[331719244,1720693840173,-974.284818,0.0002549,2]
[331719245,1720693840185,-974.284818,0.0002549,2]
[331719246,1720693840195,-194847.90870159,0.000255,2]
[331719273,1720693843045,-0.02582841,0.00021409,2]
[331719315,1720694120512,2422.80787231,0.00016255,2]
[331719316,1720694123690,32860.66773368,0.00016255,2]
[331719318,1720694150425,790.54047591,0.00016255,2]
[331719323,1720694240506,948.9256647,0.00016255,2]
[331719325,1720694266676,4711.13030053,0.00016255,2]
[331719326,1720694284648,201.05669053,0.00016255,2]
[331719327,1720694299563,154.69833824,0.00016255,2]
[331719329,1720694325658,201.00821583,0.00016255,2]
[331719330,1720694329287,208.17979125,0.00016255,2]
[331719331,1720694332399,283.43817222,0.00016255,2]
[331719332,1720694344279,300.0,0.00016255,2]
[331719333,1720694355990,156.17659771,0.00016255,2]
[331719334,1720694358613,458.22974675,0.00016255,2]
[331719337,1720694462545,727.82110719,0.00016255,2]
[331719338,1720694462761,230.75,0.0002522,120]
[331719339,1720694463939,844.7275033,0.00016255,2]
[331719342,1720694493865,532.01362023,0.00016255,2]
[331719349,1720694672434,526.01582604,0.00016255,2]
[331719354,1720694703441,935.07993032,0.00016255,2]
[331719356,1720694763707,495.20736015,0.00016255,2]
[331719357,1720694766859,160.34782851,0.00016255,2]
[331719359,1720694801265,276.75070729,0.00017531,2]
[331719360,1720694806385,155.60140174,0.00016255,2]
[331719362,1720694820115,354.46681452,0.00016255,2]
[331719363,1720694829497,155.62808659,0.00016255,2]
[331719364,1720694833644,154.69833824,0.00016255,2]
[331719365,1720694842299,1587.66604664,0.00016255,2]
[331719366,1720694848861,154.69833824,0.00016255,2]
[331719367,1720694877193,154.89931235,0.00016255,2]
[331719368,1720694892044,156.24641232,0.00016255,2]
[331719373,1720694981773,155.8018008,0.00016255,2]
[331719375,1720694991118,354.46681452,0.00016255,2]
[331719411,1720695032842,-322.80946017,0.00018798,2]
[331719413,1720695032853,-3000.0,0.00018895,2]
[331719415,1720695032863,-220.85927853,0.00018899,2]
[331719417,1720695032872,-154.69833824,0.00018899,2]
[331719419,1720695032882,-1409.95356619,0.000189,2]
[331719421,1720695032892,-250.0,0.00018961,2]
[331719423,1720695032902,-93.37935687,0.00019,2]
[331719636,1720695038050,-113.43838291,0.00019,2]
[331719637,1720695038060,-165.362528,0.00019178,2]
[331719638,1720695038073,-250.0,0.0001925,2]
[331719639,1720695038083,-300.0,0.00019698,2]
[331719640,1720695038093,-300.0,0.00019698,2]
[331719641,1720695038103,-24900.0,0.00019699,2]
[331719642,1720695038113,-280.26259274,0.00019703,2]
[331719643,1720695038123,-354.46681452,0.00019703,2]
[331719645,1720695038133,-1000.0,0.0002,6]
[331719647,1720695038142,-154.69833824,0.0002,2]
[331719649,1720695038153,-293.58203646,0.0002,2]
[331719652,1720695038165,-252.4417882,0.000208,2]
[331719654,1720695038175,-1000.0,0.00021,21]
[331719656,1720695038184,-154.69833824,0.00021095,2]
[331719657,1720695038194,-154.69833824,0.00021095,2]
[331719658,1720695038203,-750.0,0.00021096,2]
[331719659,1720695038212,-516.293403,0.00021409,2]
[331719660,1720695038222,-225.81003448,0.00021409,2]
[331719661,1720695038231,-1748.28581461,0.00021409,2]
[331719662,1720695038241,-764.10919398,0.00021409,2]
[331719663,1720695038250,-6865.55878528,0.00021409,2]
[331719664,1720695038260,-428.44271624,0.00021409,2]
[331719665,1720695038269,-155.1752081,0.00021409,2]
[331719666,1720695038278,-420.0,0.00021456,2]
[331719667,1720695038287,-420.0,0.00021668,2]
[331719668,1720695038297,-1065.99282123,0.00021917,2]
[331719669,1720695038306,-166.666666,0.00021918,2]
[331719670,1720695038316,-880.43468387,0.00022289,2]
[331719671,1720695038325,-880.43468387,0.00022289,2]
[331719672,1720695038334,-166.666666,0.00022431,2]
[331719673,1720695038344,-166.666666,0.00022944,2]
[331719674,1720695038353,-500.0,0.00023,2]
[331719675,1720695038362,-493.9878288,0.00023215,2]
[331719676,1720695038371,-587.0,0.0002337,2]
[331719677,1720695038381,-155.45465387,0.00023453,2]
[331719678,1720695038390,-166.666666,0.00023456,2]
[331719679,1720695038399,-362.37139851,0.00023584,2]
[331719680,1720695038409,-5044.41064471,0.00023605,2]
[331719681,1720695038418,-587.0,0.00023835,2]
[331719682,1720695038427,-1409.95356619,0.000239,2]
[331719683,1720695038437,-5044.41064471,0.00023961,2]
[331719684,1720695038446,-166.666666,0.00023969,2]
[331719685,1720695038455,-500.0,0.00024,2]
[331719686,1720695038465,-1000.0,0.00024,24]
[331719687,1720695038474,-362.37139851,0.00024052,2]
[331719688,1720695038484,-362.37139851,0.00024297,2]
[331719689,1720695038493,-5044.41064471,0.00024326,2]
[331719690,1720695038503,-362.37139851,0.00024442,2]
[331719691,1720695038513,-5044.41064471,0.00024467,2]
[331719692,1720695038522,-166.666666,0.00024482,2]
[331719693,1720695038532,-150.0,0.00024507,2]
[331719694,1720695038542,-380.0,0.00024658,2]
[331719695,1720695038551,-2000.0,0.00024677,2]
[331719696,1720695038560,-5044.41064471,0.00024696,2]
[331719697,1720695038570,-293.33024516,0.00024746,2]
[331719698,1720695038579,-500.0,0.00024746,2]
[331719699,1720695038588,-500.0,0.00024746,2]
[331719700,1720695038598,-168.68859395,0.00024746,2]
[331719701,1720695038607,-282.87998173,0.00024746,2]
[331719702,1720695038617,-343.04715426,0.00024746,2]
[331719703,1720695038626,-462.77196754,0.00024746,2]
[331719704,1720695038696,-500.0,0.00024746,2]
[331719705,1720695038706,-270.06883318,0.00024746,2]
[331719706,1720695038715,-212.33914647,0.00024746,2]
[331719707,1720695038725,-5831.98833747,0.00024747,5]
[331719708,1720695038735,-81869.0276587,0.00024747,3]
[331719709,1720695038745,-4238.09847743,0.00024777,2]
[331719710,1720695038754,-20198.34074,0.00024827,2]
[331719711,1720695038764,-150.0,0.00024827,2]
[331719712,1720695038773,-362.37139851,0.00024838,2]
[331719713,1720695038783,-302.1841873,0.000249,2]
[331719714,1720695038792,-4238.09847743,0.00024933,2]
[331719715,1720695038802,-5044.41064471,0.00024958,2]
[331719716,1720695038811,-200.0,0.00024983,2]
[331719717,1720695038821,-362.37139851,0.00024998,2]
[331719718,1720695038830,-1000.0,0.00025,25]
[331719719,1720695038839,-500.0,0.00025,2]
[331719720,1720695038849,-243.97778221,0.00025,2]
[331719721,1720695038859,-1144.72262457,0.00025,30]
[331719722,1720695038868,-14347.28784145,0.00025,2]